[Event "Titled Tuesday Blitz May 2 Early 2023"]
[White "Eggink, Ryszard"]
[Black "Tsyhanchuk, Stanislav"]
[WhiteFideId "1125869"]
[BlackFideId "13505130"]
[WhiteElo "2283"]
[BlackElo "2173"]
[Result "1-0"]
[Round "09"]
[TimeControl "180+2"]
[Date "2023.05.02"]
[WhiteClock "0:00:18"]
[BlackClock "0:00:10"]

1. d4 {[%clk 0:03:00]}  Nf6 {[%clk 0:02:59]} 2. c4 {[%clk 0:03:00]}  e6 {[%clk 0:02:59]} 3. Nf3 {[%clk 0:03:00]}  b6 {[%clk 0:02:59]} 4. g3 {[%clk 0:03:00]}  Bb7 {[%clk 0:02:59]} 5. Bg2 {[%clk 0:03:00]}  d6 {[%clk 0:02:56]} 6. O-O {[%clk 0:03:00]}  Nbd7 {[%clk 0:02:56]} 7. Nc3 {[%clk 0:03:00]}  Be7 {[%clk 0:02:56]} 8. d5 {[%clk 0:03:00]}  exd5 {[%clk 0:02:52]} 9. cxd5 {[%clk 0:02:59]}  O-O {[%clk 0:02:52]} 10. e4 {[%clk 0:02:59]}  a5 {[%clk 0:02:51]} 11. Re1 {[%clk 0:02:58]}  Nc5 {[%clk 0:02:50]} 12. e5 {[%clk 0:02:53]}  dxe5 {[%clk 0:02:50]} 13. Nxe5 {[%clk 0:02:54]}  Re8 {[%clk 0:02:30]} 14. Bf4 {[%clk 0:02:53]}  Bf8 {[%clk 0:02:26]} 15. Qd2 {[%clk 0:02:50]}  Rc8 {[%clk 0:02:17]} 16. Rad1 {[%clk 0:02:50]}  Bd6 {[%clk 0:02:03]} 17. Nb5 {[%clk 0:02:29]}  Bxe5 {[%clk 0:01:46]} 18. Bxe5 {[%clk 0:02:30]}  Nxd5 {[%clk 0:01:42]} 19. Bxd5 {[%clk 0:02:20]}  Bxd5 {[%clk 0:01:38]} 20. Qxd5 {[%clk 0:02:19]}  Qxd5 {[%clk 0:01:37]} 21. Rxd5 {[%clk 0:02:20]}  f6 {[%clk 0:01:31]} 22. Bc3 {[%clk 0:01:57]}  Rxe1+ {[%clk 0:01:30]} 23. Bxe1 {[%clk 0:01:57]}  c6 {[%clk 0:01:31]} 24. Nd6 {[%clk 0:01:47]}  Rd8 {[%clk 0:01:29]} 25. Rd2 {[%clk 0:01:33]}  Kf8 {[%clk 0:01:10]} 26. Kf1 {[%clk 0:01:30]}  b5 {[%clk 0:01:03]} 27. Ne4 {[%clk 0:01:25]}  Rxd2 {[%clk 0:01:03]} 28. Nxd2 {[%clk 0:01:26]}  a4 {[%clk 0:01:02]} 29. Ke2 {[%clk 0:01:20]}  Ke7 {[%clk 0:01:00]} 30. f3 {[%clk 0:01:18]}  Ke6 {[%clk 0:01:00]} 31. Ne4 {[%clk 0:01:16]}  Nd7 {[%clk 0:00:59]} 32. Bb4 {[%clk 0:01:07]}  Kd5 {[%clk 0:00:59]} 33. b3 {[%clk 0:01:01]}  c5 {[%clk 0:00:56]} 34. Bd2 {[%clk 0:00:53]}  axb3 {[%clk 0:00:55]} 35. axb3 {[%clk 0:00:53]}  b4 {[%clk 0:00:50]} 36. Bf4 {[%clk 0:00:40]}  h6 {[%clk 0:00:41]} 37. Kd3 {[%clk 0:00:38]}  g5 {[%clk 0:00:39]} 38. Bc7 {[%clk 0:00:37]}  f5 {[%clk 0:00:37]} 39. Nd2 {[%clk 0:00:34]}  Kc6 {[%clk 0:00:34]} 40. Bd8 {[%clk 0:00:31]}  Ne5+ {[%clk 0:00:34]} 41. Ke3 {[%clk 0:00:31]}  Kd5 {[%clk 0:00:34]} 42. Bf6 {[%clk 0:00:29]}  Nd7 {[%clk 0:00:19]} 43. Bg7 {[%clk 0:00:29]}  h5 {[%clk 0:00:18]} 44. h3 {[%clk 0:00:29]}  Nb6 {[%clk 0:00:17]} 45. Kd3 {[%clk 0:00:28]}  Nc8 {[%clk 0:00:14]} 46. Nc4 {[%clk 0:00:27]}  g4 {[%clk 0:00:14]} 47. fxg4 {[%clk 0:00:25]}  fxg4 {[%clk 0:00:12]} 48. hxg4 {[%clk 0:00:21]}  hxg4 {[%clk 0:00:13]} 49. Ke3 {[%clk 0:00:20]}  Ne7 {[%clk 0:00:12]} 50. Kf4 {[%clk 0:00:20]}  Nc6 {[%clk 0:00:10]} 51. Kxg4 {[%clk 0:00:19]}  Nd4 {[%clk 0:00:10]} 52. Bxd4 {[%clk 0:00:19]}  Kxd4 {[%clk 0:00:09]} 53. Kf4 {[%clk 0:00:17]}  Kc3 {[%clk 0:00:09]} 54. Na5 {[%clk 0:00:18]}  c4 {[%clk 0:00:09]} 55. bxc4 {[%clk 0:00:18]}  b3 {[%clk 0:00:09]} 56. Nxb3 {[%clk 0:00:18]}  Kxb3 {[%clk 0:00:10]} 57. c5 {[%clk 0:00:18]} 1-0


[Site "https://www.chess.com"]

[Event "Titled Tuesday Blitz May 2 Early 2023"]
[White "Adithya A Chullikkad"]
[Black "Chernov, Mikhail"]
[WhiteFideId "45078734"]
[BlackFideId "24143170"]
[WhiteElo "1984"]
[BlackElo "2113"]
[Result "1-0"]
[Round "09"]
[TimeControl "180+2"]
[Date "2023.05.02"]
[WhiteClock "0:01:20"]
[BlackClock "0:00:04"]

1. d4 {[%clk 0:03:00]}  d5 {[%clk 0:02:40]} 2. c4 {[%clk 0:02:58]}  Nc6 {[%clk 0:02:40]} 3. cxd5 {[%clk 0:02:57]}  Qxd5 {[%clk 0:02:39]} 4. Nf3 {[%clk 0:02:57]}  e5 {[%clk 0:02:40]} 5. e3 {[%clk 0:02:56]}  Bg4 {[%clk 0:02:38]} 6. Be2 {[%clk 0:02:52]}  O-O-O {[%clk 0:02:34]} 7. O-O {[%clk 0:02:39]}  exd4 {[%clk 0:02:24]} 8. Nxd4 {[%clk 0:02:38]}  Bxe2 {[%clk 0:02:22]} 9. Qxe2 {[%clk 0:02:38]}  Nxd4 {[%clk 0:02:20]} 10. exd4 {[%clk 0:02:38]}  Nf6 {[%clk 0:02:05]} 11. Nc3 {[%clk 0:02:36]}  Qxd4 {[%clk 0:01:55]} 12. Be3 {[%clk 0:02:36]}  Qd3 {[%clk 0:01:53]} 13. Qf3 {[%clk 0:02:22]}  Bb4 {[%clk 0:01:40]} 14. Rad1 {[%clk 0:02:18]}  Qa6 {[%clk 0:01:27]} 15. Bd4 {[%clk 0:02:06]}  Rd6 {[%clk 0:00:42]} 16. Bxf6 {[%clk 0:02:04]}  Rxf6 {[%clk 0:00:21]} 17. Qg4+ {[%clk 0:02:02]}  Kb8 {[%clk 0:00:20]} 18. Qxb4 {[%clk 0:02:02]}  Qc6 {[%clk 0:00:17]} 19. Qd4 {[%clk 0:01:57]}  a6 {[%clk 0:00:16]} 20. Qd5 {[%clk 0:01:51]}  Qb6 {[%clk 0:00:14]} 21. b3 {[%clk 0:01:47]}  Re8 {[%clk 0:00:13]} 22. Qd4 {[%clk 0:01:45]}  Qc6 {[%clk 0:00:12]} 23. Rfe1 {[%clk 0:01:42]}  Rc8 {[%clk 0:00:10]} 24. Qd5 {[%clk 0:01:40]}  Qb6 {[%clk 0:00:10]} 25. Ne4 {[%clk 0:01:41]}  Rg6 {[%clk 0:00:07]} 26. Nc5 {[%clk 0:01:39]}  Qb5 {[%clk 0:00:07]} 27. a4 {[%clk 0:01:35]}  Qb4 {[%clk 0:00:07]} 28. Re4 {[%clk 0:01:32]}  Rd6 {[%clk 0:00:05]} 29. Rxb4 {[%clk 0:01:31]}  Rxd5 {[%clk 0:00:05]} 30. Rxb7+ {[%clk 0:01:28]}  Ka8 {[%clk 0:00:05]} 31. Rxd5 {[%clk 0:01:29]}  Re8 {[%clk 0:00:06]} 32. g3 {[%clk 0:01:27]}  h5 {[%clk 0:00:03]} 33. Rxc7 {[%clk 0:01:25]}  h4 {[%clk 0:00:04]} 34. gxh4 {[%clk 0:01:20]}  g5 {[%clk 0:00:04]} 35. Rdd7 {[%clk 0:01:20]} 1-0


[Site "https://www.chess.com"]

[Event "Titled Tuesday Blitz May 2 Early 2023"]
[White "Mogirzan, Matei-Valeriu"]
[Black "Begunov, Konstantin"]
[WhiteFideId "1257455"]
[BlackFideId "4118510"]
[WhiteElo "1733"]
[BlackElo "2087"]
[Result "1-0"]
[Round "09"]
[TimeControl "180+2"]
[Date "2023.05.02"]
[WhiteClock "0:00:02"]
[BlackClock "0:00:02"]

1. e4 {[%clk 0:03:00]}  c5 {[%clk 0:02:57]} 2. Nf3 {[%clk 0:02:56]}  d6 {[%clk 0:02:57]} 3. d4 {[%clk 0:02:53]}  cxd4 {[%clk 0:02:58]} 4. Nxd4 {[%clk 0:02:54]}  Nf6 {[%clk 0:02:58]} 5. Nc3 {[%clk 0:02:52]}  a6 {[%clk 0:02:58]} 6. Bc4 {[%clk 0:02:51]}  e6 {[%clk 0:02:58]} 7. Bb3 {[%clk 0:02:50]}  Be7 {[%clk 0:02:59]} 8. g4 {[%clk 0:02:49]}  h6 {[%clk 0:02:48]} 9. Be3 {[%clk 0:02:48]}  Nc6 {[%clk 0:02:42]} 10. f3 {[%clk 0:02:28]}  d5 {[%clk 0:02:32]} 11. Qe2 {[%clk 0:02:22]}  Nxd4 {[%clk 0:02:07]} 12. Bxd4 {[%clk 0:02:21]}  dxe4 {[%clk 0:02:07]} 13. O-O-O {[%clk 0:02:18]}  exf3 {[%clk 0:01:54]} 14. Qxf3 {[%clk 0:02:10]}  Qa5 {[%clk 0:01:53]} 15. Rhe1 {[%clk 0:01:10]}  O-O {[%clk 0:01:48]} 16. Re5 {[%clk 0:00:56]}  Qc7 {[%clk 0:01:40]} 17. g5 {[%clk 0:00:41]}  Bd6 {[%clk 0:01:11]} 18. gxf6 {[%clk 0:00:12]}  Bxe5 {[%clk 0:01:10]} 19. Qg4 {[%clk 0:00:04]}  g6 {[%clk 0:00:39]} 20. Qh4 {[%clk 0:00:04]}  Bf4+ {[%clk 0:00:27]} 21. Kb1 {[%clk 0:00:03]}  e5 {[%clk 0:00:20]} 22. Nd5 {[%clk 0:00:03]}  Qd6 {[%clk 0:00:17]} 23. Nxf4 {[%clk 0:00:03]}  exd4 {[%clk 0:00:12]} 24. Nd5 {[%clk 0:00:03]}  Kh7 {[%clk 0:00:11]} 25. Rxd4 {[%clk 0:00:02]}  Be6 {[%clk 0:00:09]} 26. c4 {[%clk 0:00:02]}  b5 {[%clk 0:00:08]} 27. a3 {[%clk 0:00:01]}  bxc4 {[%clk 0:00:08]} 28. Bxc4 {[%clk 0:00:02]}  Rac8 {[%clk 0:00:08]} 29. Ne3 {[%clk 0:00:02]}  Qe5 {[%clk 0:00:07]} 30. Re4 {[%clk 0:00:02]}  Qg5 {[%clk 0:00:03]} 31. Qxg5 {[%clk 0:00:02]}  hxg5 {[%clk 0:00:04]} 32. Bxe6 {[%clk 0:00:02]}  fxe6 {[%clk 0:00:05]} 33. Rxe6 {[%clk 0:00:03]}  Rf7 {[%clk 0:00:04]} 34. Ng4 {[%clk 0:00:03]}  a5 {[%clk 0:00:03]} 35. Ne5 {[%clk 0:00:03]}  Rb7 {[%clk 0:00:02]} 36. f7 {[%clk 0:00:02]}  Rf8 {[%clk 0:00:02]} 37. Rxg6 {[%clk 0:00:02]} 1-0


[Site "https://www.chess.com"]

[Event "Titled Tuesday Blitz May 2 Early 2023"]
[White "Balague Camps, Marc"]
[Black "Vivas Zamora, Fabian Ernesto"]
[WhiteFideId "2297914"]
[BlackFideId "3902480"]
[WhiteElo "2089"]
[BlackElo "2262"]
[Result "1-0"]
[Round "09"]
[TimeControl "180+2"]
[Date "2023.05.02"]
[WhiteClock "0:00:06"]
[BlackClock "0:00:07"]

1. d4 {[%clk 0:03:00]}  Nf6 {[%clk 0:02:44]} 2. c4 {[%clk 0:03:01]}  g6 {[%clk 0:02:44]} 3. Nc3 {[%clk 0:03:00]}  d5 {[%clk 0:02:44]} 4. Nf3 {[%clk 0:03:01]}  Bg7 {[%clk 0:02:43]} 5. Qb3 {[%clk 0:03:01]}  dxc4 {[%clk 0:02:42]} 6. Qxc4 {[%clk 0:03:02]}  O-O {[%clk 0:02:43]} 7. e4 {[%clk 0:03:03]}  a6 {[%clk 0:02:44]} 8. Be2 {[%clk 0:03:02]}  b5 {[%clk 0:02:43]} 9. Qb3 {[%clk 0:03:02]}  c5 {[%clk 0:02:41]} 10. dxc5 {[%clk 0:03:03]}  Bb7 {[%clk 0:02:42]} 11. e5 {[%clk 0:02:57]}  Nfd7 {[%clk 0:02:39]} 12. e6 {[%clk 0:02:57]}  Nxc5 {[%clk 0:02:35]} 13. exf7+ {[%clk 0:02:56]}  Rxf7 {[%clk 0:02:31]} 14. Qc2 {[%clk 0:02:49]}  Nc6 {[%clk 0:02:06]} 15. O-O {[%clk 0:02:38]}  Nb4 {[%clk 0:02:03]} 16. Qb1 {[%clk 0:02:32]}  Bxf3 {[%clk 0:01:01]} 17. gxf3 {[%clk 0:02:22]}  Ra7 {[%clk 0:00:43]} 18. Be3 {[%clk 0:02:21]}  Rc7 {[%clk 0:00:21]} 19. a4 {[%clk 0:02:07]}  Bxc3 {[%clk 0:00:16]} 20. bxc3 {[%clk 0:02:07]}  Nd5 {[%clk 0:00:17]} 21. Rd1 {[%clk 0:01:57]}  Qa8 {[%clk 0:00:16]} 22. Bxc5 {[%clk 0:01:51]}  Rxc5 {[%clk 0:00:16]} 23. Qe4 {[%clk 0:01:51]}  Qc6 {[%clk 0:00:09]} 24. axb5 {[%clk 0:01:51]}  axb5 {[%clk 0:00:10]} 25. Kf1 {[%clk 0:00:57]}  Nxc3 {[%clk 0:00:09]} 26. Qxc6 {[%clk 0:00:57]}  Rxc6 {[%clk 0:00:10]} 27. Ra8+ {[%clk 0:00:52]}  Kg7 {[%clk 0:00:10]} 28. Rd4 {[%clk 0:00:39]}  e5 {[%clk 0:00:09]} 29. Rb4 {[%clk 0:00:38]}  Nd5 {[%clk 0:00:05]} 30. Rb1 {[%clk 0:00:35]}  b4 {[%clk 0:00:05]} 31. Rb8 {[%clk 0:00:34]}  Rfc7 {[%clk 0:00:04]} 32. R8xb4 {[%clk 0:00:23]}  Rc1+ {[%clk 0:00:04]} 33. Kg2 {[%clk 0:00:21]}  Nf4+ {[%clk 0:00:04]} 34. Rxf4 {[%clk 0:00:20]}  exf4 {[%clk 0:00:04]} 35. Rxc1 {[%clk 0:00:19]}  Rxc1 {[%clk 0:00:05]} 36. Bd3 {[%clk 0:00:19]}  Kf6 {[%clk 0:00:05]} 37. Be4 {[%clk 0:00:20]}  h5 {[%clk 0:00:05]} 38. Bd5 {[%clk 0:00:14]}  g5 {[%clk 0:00:05]} 39. Be4 {[%clk 0:00:14]}  Ke5 {[%clk 0:00:05]} 40. Bg6 {[%clk 0:00:14]}  h4 {[%clk 0:00:03]} 41. Bh5 {[%clk 0:00:14]}  Kd4 {[%clk 0:00:03]} 42. Kh3 {[%clk 0:00:08]}  Rc2 {[%clk 0:00:03]} 43. Kg2 {[%clk 0:00:04]}  Kc3 {[%clk 0:00:02]} 44. Bg6 {[%clk 0:00:05]}  Rb2 {[%clk 0:00:02]} 45. Be4 {[%clk 0:00:03]}  Kd2 {[%clk 0:00:03]} 46. Kh3 {[%clk 0:00:02]}  Ke1 {[%clk 0:00:03]} 47. Kg4 {[%clk 0:00:02]}  Rxf2 {[%clk 0:00:03]} 48. Kxg5 {[%clk 0:00:03]}  h3 {[%clk 0:00:02]} 49. Kxf4 {[%clk 0:00:03]}  Rxh2 {[%clk 0:00:02]} 50. Kg3 {[%clk 0:00:03]}  Rh1 {[%clk 0:00:02]} 51. f4 {[%clk 0:00:03]}  Ke2 {[%clk 0:00:02]} 52. Bxh1 {[%clk 0:00:03]}  Ke3 {[%clk 0:00:02]} 53. f5 {[%clk 0:00:03]}  Kd4 {[%clk 0:00:03]} 54. f6 {[%clk 0:00:04]}  Ke5 {[%clk 0:00:03]} 55. f7 {[%clk 0:00:05]}  h2 {[%clk 0:00:02]} 56. f8=Q {[%clk 0:00:05]}  Kd4 {[%clk 0:00:03]} 57. Qf4+ {[%clk 0:00:05]}  Kc3 {[%clk 0:00:04]} 58. Qd6 {[%clk 0:00:05]}  Kb2 {[%clk 0:00:04]} 59. Qc5 {[%clk 0:00:05]}  Kb1 {[%clk 0:00:04]} 60. Qf2 {[%clk 0:00:06]}  Ka1 {[%clk 0:00:05]} 61. Qd2 {[%clk 0:00:05]}  Kb1 {[%clk 0:00:05]} 62. Bd5 {[%clk 0:00:02]}  h1=Q {[%clk 0:00:05]} 63. Bxh1 {[%clk 0:00:03]}  Ka1 {[%clk 0:00:05]} 64. Kf3 {[%clk 0:00:03]}  Kb1 {[%clk 0:00:05]} 65. Ke3 {[%clk 0:00:04]}  Ka1 {[%clk 0:00:06]} 66. Kd3 {[%clk 0:00:05]}  Kb1 {[%clk 0:00:07]} 67. Kc3 {[%clk 0:00:06]}  Ka1 {[%clk 0:00:07]} 68. Qb2# {[%clk 0:00:06]} 1-0


[Site "https://www.chess.com"]

[Event "Titled Tuesday Blitz May 2 Early 2023"]
[White "Fathy, Elameir"]
[Black "Devaev, Alexander"]
[WhiteFideId "10600396"]
[BlackFideId "4169395"]
[WhiteElo "2311"]
[BlackElo "2204"]
[Result "1-0"]
[Round "09"]
[TimeControl "180+2"]
[Date "2023.05.02"]
[WhiteClock "0:00:10"]
[BlackClock "0:00:27"]

1. d4 {[%clk 0:03:00]}  Nf6 {[%clk 0:02:58]} 2. c4 {[%clk 0:03:01]}  e6 {[%clk 0:02:58]} 3. Nf3 {[%clk 0:03:01]}  c5 {[%clk 0:02:56]} 4. d5 {[%clk 0:03:01]}  d6 {[%clk 0:02:56]} 5. Nc3 {[%clk 0:03:01]}  e5 {[%clk 0:02:57]} 6. e4 {[%clk 0:03:01]}  Nbd7 {[%clk 0:02:57]} 7. h3 {[%clk 0:02:54]}  Be7 {[%clk 0:02:57]} 8. Be3 {[%clk 0:02:54]}  O-O {[%clk 0:02:54]} 9. g4 {[%clk 0:02:52]}  Re8 {[%clk 0:02:49]} 10. Nd2 {[%clk 0:02:50]}  Nf8 {[%clk 0:02:49]} 11. Be2 {[%clk 0:02:43]}  Ng6 {[%clk 0:02:48]} 12. h4 {[%clk 0:02:39]}  Nd7 {[%clk 0:02:42]} 13. g5 {[%clk 0:02:36]}  Nf4 {[%clk 0:02:41]} 14. Qc2 {[%clk 0:02:32]}  a6 {[%clk 0:02:40]} 15. Bf3 {[%clk 0:02:02]}  Rb8 {[%clk 0:02:38]} 16. a4 {[%clk 0:01:57]}  Nf8 {[%clk 0:02:27]} 17. O-O-O {[%clk 0:01:51]}  Bd7 {[%clk 0:02:23]} 18. Nb3 {[%clk 0:01:22]}  b5 {[%clk 0:02:23]} 19. Nxc5 {[%clk 0:01:23]}  b4 {[%clk 0:01:56]} 20. Nxd7 {[%clk 0:01:18]}  Qxd7 {[%clk 0:01:48]} 21. Ne2 {[%clk 0:01:17]}  Nxe2+ {[%clk 0:01:46]} 22. Bxe2 {[%clk 0:01:17]}  b3 {[%clk 0:01:46]} 23. Qc3 {[%clk 0:01:16]}  Qxa4 {[%clk 0:01:46]} 24. Kd2 {[%clk 0:00:58]}  Qd7 {[%clk 0:01:40]} 25. Ra1 {[%clk 0:00:56]}  Qc8 {[%clk 0:01:26]} 26. Rhg1 {[%clk 0:00:49]}  Nd7 {[%clk 0:01:23]} 27. Bg4 {[%clk 0:00:46]}  Qc7 {[%clk 0:01:21]} 28. Bxd7 {[%clk 0:00:43]}  Qxd7 {[%clk 0:01:21]} 29. Rxa6 {[%clk 0:00:43]}  Rec8 {[%clk 0:01:18]} 30. Ra7 {[%clk 0:00:38]}  Qd8 {[%clk 0:01:13]} 31. h5 {[%clk 0:00:29]}  Rc7 {[%clk 0:00:50]} 32. g6 {[%clk 0:00:25]}  fxg6 {[%clk 0:00:41]} 33. hxg6 {[%clk 0:00:25]}  h6 {[%clk 0:00:42]} 34. Rxc7 {[%clk 0:00:25]}  Qxc7 {[%clk 0:00:42]} 35. Ra1 {[%clk 0:00:21]}  Bg5 {[%clk 0:00:35]} 36. Bxg5 {[%clk 0:00:19]}  hxg5 {[%clk 0:00:36]} 37. Qh3 {[%clk 0:00:20]}  Kf8 {[%clk 0:00:32]} 38. Qh8+ {[%clk 0:00:17]}  Ke7 {[%clk 0:00:31]} 39. Qxg7+ {[%clk 0:00:18]}  Kd8 {[%clk 0:00:32]} 40. Qf8+ {[%clk 0:00:18]}  Kd7 {[%clk 0:00:32]} 41. Qf7+ {[%clk 0:00:19]}  Kc8 {[%clk 0:00:33]} 42. Qxc7+ {[%clk 0:00:19]}  Kxc7 {[%clk 0:00:33]} 43. Ra7+ {[%clk 0:00:18]}  Kb6 {[%clk 0:00:33]} 44. Rf7 {[%clk 0:00:18]}  Kc5 {[%clk 0:00:34]} 45. Kc3 {[%clk 0:00:17]}  Rg8 {[%clk 0:00:33]} 46. g7 {[%clk 0:00:18]}  g4 {[%clk 0:00:33]} 47. Kxb3 {[%clk 0:00:18]}  Kd4 {[%clk 0:00:32]} 48. Kb4 {[%clk 0:00:13]}  Kxe4 {[%clk 0:00:33]} 49. Kb5 {[%clk 0:00:08]}  Kd4 {[%clk 0:00:33]} 50. b3 {[%clk 0:00:08]}  e4 {[%clk 0:00:33]} 51. Kc6 {[%clk 0:00:07]}  Ke5 {[%clk 0:00:32]} 52. c5 {[%clk 0:00:07]}  dxc5 {[%clk 0:00:32]} 53. d6 {[%clk 0:00:08]}  Ke6 {[%clk 0:00:31]} 54. Re7+ {[%clk 0:00:07]}  Kf5 {[%clk 0:00:31]} 55. d7 {[%clk 0:00:07]}  g3 {[%clk 0:00:30]} 56. fxg3 {[%clk 0:00:07]}  Kf6 {[%clk 0:00:26]} 57. Re8 {[%clk 0:00:08]}  Rxg7 {[%clk 0:00:26]} 58. d8=Q+ {[%clk 0:00:08]}  Kf5 {[%clk 0:00:27]} 59. Rf8+ {[%clk 0:00:09]}  Kg4 {[%clk 0:00:27]} 60. Rg8 {[%clk 0:00:09]}  Rxg8 {[%clk 0:00:26]} 61. Qxg8+ {[%clk 0:00:10]}  Kf3 {[%clk 0:00:27]} 62. Kxc5 {[%clk 0:00:10]} 1-0


[Site "https://www.chess.com"]

[Event "Titled Tuesday Blitz May 2 Early 2023"]
[White "Zaichenko, Daria"]
[Black "Panda Sambit"]
[WhiteFideId "4197453"]
[BlackFideId "25091794"]
[WhiteElo "2039"]
[BlackElo "2272"]
[Result "0-1"]
[Round "09"]
[TimeControl "180+2"]
[Date "2023.05.02"]
[WhiteClock "0:01:39"]
[BlackClock "0:01:42"]

1. e4 {[%clk 0:02:55]}  Nc6 {[%clk 0:02:54]} 2. d4 {[%clk 0:02:55]}  d6 {[%clk 0:02:55]} 3. f4 {[%clk 0:02:50]}  Nf6 {[%clk 0:02:42]} 4. Nc3 {[%clk 0:02:47]}  g6 {[%clk 0:02:34]} 5. Nf3 {[%clk 0:02:46]}  Bg7 {[%clk 0:02:34]} 6. Bd3 {[%clk 0:02:43]}  Bg4 {[%clk 0:02:33]} 7. Be3 {[%clk 0:02:42]}  e5 {[%clk 0:02:33]} 8. d5 {[%clk 0:02:37]}  exf4 {[%clk 0:02:31]} 9. Bxf4 {[%clk 0:02:37]}  Nd4 {[%clk 0:02:29]} 10. Be3 {[%clk 0:02:36]}  Bxf3 {[%clk 0:02:24]} 11. gxf3 {[%clk 0:02:35]}  Nh5 {[%clk 0:02:24]} 12. Bxd4 {[%clk 0:02:15]}  Bxd4 {[%clk 0:02:19]} 13. Qd2 {[%clk 0:01:59]}  Qh4+ {[%clk 0:02:17]} 14. Kd1 {[%clk 0:01:59]}  O-O {[%clk 0:02:15]} 15. Kc1 {[%clk 0:01:55]}  Rae8 {[%clk 0:01:58]} 16. Ne2 {[%clk 0:01:54]}  Bb6 {[%clk 0:01:56]} 17. c3 {[%clk 0:01:51]}  f5 {[%clk 0:01:56]} 18. Kc2 {[%clk 0:01:50]}  fxe4 {[%clk 0:01:56]} 19. Bxe4 {[%clk 0:01:48]}  Nf6 {[%clk 0:01:44]} 20. Ng3 {[%clk 0:01:46]}  Nxe4 {[%clk 0:01:43]} 21. Nxe4 {[%clk 0:01:41]}  Rxf3 {[%clk 0:01:43]} 22. Rae1 {[%clk 0:01:39]}  Rxe4 {[%clk 0:01:42]} 0-1


[Site "https://www.chess.com"]

[Event "Titled Tuesday Blitz May 2 Early 2023"]
[White "Levitan, Caleb Levi"]
[Black "Sai Han Thiha"]
[WhiteFideId "14332620"]
[BlackFideId "13012290"]
[WhiteElo "1963"]
[BlackElo "1954"]
[Result "1-0"]
[Round "09"]
[TimeControl "180+2"]
[Date "2023.05.02"]
[WhiteClock "0:00:07"]
[BlackClock "0:01:11"]

1. e4 {[%clk 0:02:57]}  c6 {[%clk 0:03:00]} 2. d4 {[%clk 0:02:56]}  d5 {[%clk 0:03:01]} 3. exd5 {[%clk 0:02:57]}  cxd5 {[%clk 0:03:01]} 4. Bd3 {[%clk 0:02:57]}  Nc6 {[%clk 0:03:01]} 5. c3 {[%clk 0:02:57]}  Nf6 {[%clk 0:03:02]} 6. Bf4 {[%clk 0:02:58]}  Bg4 {[%clk 0:03:02]} 7. Qb3 {[%clk 0:02:55]}  Qd7 {[%clk 0:03:02]} 8. Nd2 {[%clk 0:02:55]}  e6 {[%clk 0:03:03]} 9. Ngf3 {[%clk 0:02:56]}  Bd6 {[%clk 0:03:03]} 10. Ne5 {[%clk 0:02:50]}  Qc7 {[%clk 0:03:03]} 11. Nxg4 {[%clk 0:02:31]}  Bxf4 {[%clk 0:03:03]} 12. Nxf6+ {[%clk 0:02:31]}  gxf6 {[%clk 0:03:04]} 13. Nf3 {[%clk 0:02:31]}  h5 {[%clk 0:03:04]} 14. g3 {[%clk 0:02:28]}  Bd6 {[%clk 0:03:04]} 15. h4 {[%clk 0:02:03]}  O-O-O {[%clk 0:03:00]} 16. O-O-O {[%clk 0:02:01]}  Kb8 {[%clk 0:02:52]} 17. Kb1 {[%clk 0:01:56]}  Rc8 {[%clk 0:02:51]} 18. Rhe1 {[%clk 0:01:53]}  f5 {[%clk 0:02:50]} 19. Qa4 {[%clk 0:01:34]}  f4 {[%clk 0:02:46]} 20. gxf4 {[%clk 0:01:26]}  Bxf4 {[%clk 0:02:47]} 21. c4 {[%clk 0:01:17]}  dxc4 {[%clk 0:02:39]} 22. Qxc4 {[%clk 0:01:02]}  Ne7 {[%clk 0:02:38]} 23. Qb3 {[%clk 0:00:47]}  Nd5 {[%clk 0:02:31]} 24. Be4 {[%clk 0:00:47]}  Rhd8 {[%clk 0:02:29]} 25. Re2 {[%clk 0:00:22]}  Qb6 {[%clk 0:02:11]} 26. Bxd5 {[%clk 0:00:17]}  Rxd5 {[%clk 0:02:09]} 27. Qxb6 {[%clk 0:00:17]}  axb6 {[%clk 0:02:10]} 28. Re4 {[%clk 0:00:16]}  Bh6 {[%clk 0:01:55]} 29. Ne5 {[%clk 0:00:16]}  Rc7 {[%clk 0:01:53]} 30. Re2 {[%clk 0:00:08]}  Rxd4 {[%clk 0:01:51]} 31. Rg1 {[%clk 0:00:05]}  Ka7 {[%clk 0:01:42]} 32. a3 {[%clk 0:00:03]}  Rxh4 {[%clk 0:01:40]} 33. Rg8 {[%clk 0:00:02]}  Bf4 {[%clk 0:01:31]} 34. Nf3 {[%clk 0:00:02]}  Rh3 {[%clk 0:01:26]} 35. Nd4 {[%clk 0:00:02]}  Rc5 {[%clk 0:01:24]} 36. Re4 {[%clk 0:00:02]}  Be5 {[%clk 0:01:22]} 37. Nb3 {[%clk 0:00:01]}  Rb5 {[%clk 0:01:21]} 38. Ra4+ {[%clk 0:00:01]}  Ra5 {[%clk 0:01:18]} 39. Nxa5 {[%clk 0:00:02]}  bxa5 {[%clk 0:01:19]} 40. Rxa5+ {[%clk 0:00:03]}  Kb6 {[%clk 0:01:19]} 41. Rxe5 {[%clk 0:00:04]}  Rh2 {[%clk 0:01:18]} 42. f3 {[%clk 0:00:03]}  h4 {[%clk 0:01:18]} 43. Rh8 {[%clk 0:00:04]}  Kc6 {[%clk 0:01:17]} 44. Reh5 {[%clk 0:00:04]}  Rf2 {[%clk 0:01:17]} 45. Rxh4 {[%clk 0:00:04]}  Rf1+ {[%clk 0:01:18]} 46. Kc2 {[%clk 0:00:04]}  Rxf3 {[%clk 0:01:19]} 47. Rc4+ {[%clk 0:00:04]}  Kd5 {[%clk 0:01:18]} 48. Rb4 {[%clk 0:00:04]}  Rf2+ {[%clk 0:01:17]} 49. Kb3 {[%clk 0:00:03]}  f5 {[%clk 0:01:18]} 50. Rxb7 {[%clk 0:00:03]}  f4 {[%clk 0:01:18]} 51. a4 {[%clk 0:00:04]}  Rf3+ {[%clk 0:01:15]} 52. Ka2 {[%clk 0:00:03]}  Kc6 {[%clk 0:01:15]} 53. Rf7 {[%clk 0:00:03]}  e5 {[%clk 0:01:15]} 54. Rf6+ {[%clk 0:00:02]}  Kd5 {[%clk 0:01:14]} 55. a5 {[%clk 0:00:02]}  Rg3 {[%clk 0:01:14]} 56. a6 {[%clk 0:00:02]}  Rg7 {[%clk 0:01:15]} 57. Ra8 {[%clk 0:00:02]}  Ke4 {[%clk 0:01:12]} 58. a7 {[%clk 0:00:02]}  f3 {[%clk 0:01:13]} 59. Ra6 {[%clk 0:00:03]}  f2 {[%clk 0:01:12]} 60. Rf8 {[%clk 0:00:03]}  Ke3 {[%clk 0:01:12]} 61. a8=Q {[%clk 0:00:03]}  Rd7 {[%clk 0:01:12]} 62. Qf3+ {[%clk 0:00:03]}  Kd4 {[%clk 0:01:11]} 63. Qxf2+ {[%clk 0:00:04]}  Kd5 {[%clk 0:01:12]} 64. Qd2+ {[%clk 0:00:04]}  Ke4 {[%clk 0:01:11]} 65. Ra4+ {[%clk 0:00:03]}  Rd4 {[%clk 0:01:10]} 66. Rxd4+ {[%clk 0:00:03]}  exd4 {[%clk 0:01:11]} 67. Rd8 {[%clk 0:00:04]}  Kf5 {[%clk 0:01:11]} 68. Rxd4 {[%clk 0:00:05]}  Ke5 {[%clk 0:01:11]} 69. Qe3+ {[%clk 0:00:05]}  Kf5 {[%clk 0:01:12]} 70. Rf4+ {[%clk 0:00:06]}  Kg5 {[%clk 0:01:11]} 71. Qg3+ {[%clk 0:00:06]}  Kh6 {[%clk 0:01:11]} 72. Rh4# {[%clk 0:00:07]} 1-0


[Site "https://www.chess.com"]